bitfinex/quotes_BTCUSD_20250829
["timestamp","ask_amount","ask_price","bid_price","bid_amount"]
[1756447383083,6.73405568,111490.0,111480.0,0.00047808]
[1756447383531,6.73404879,111490.0,111480.0,0.00047808]
[1756447383755,6.58156879,111490.0,111480.0,0.00047808]
[1756447383974,6.73396879,111490.0,111480.0,0.00047808]
[1756447384181,6.58156879,111490.0,111480.0,0.00047808]
[1756447384438,0.92990382,111490.0,111480.0,0.00575808]
[1756447384642,1.56724225,111490.0,111480.0,0.00575808]
[1756447385083,1.56724225,111490.0,111480.0,0.00047808]
[1756447385310,1.66401811,111490.0,111480.0,0.00047808]
[1756447385523,1.78455106,111490.0,111480.0,0.00047808]
[1756447385751,1.81152806,111490.0,111480.0,0.00047808]
[1756447386180,1.77929049,111490.0,111480.0,1e-08]
[1756447387235,6.78392885,111490.0,111480.0,1e-08]
[1756447387455,6.80808997,111490.0,111480.0,1e-08]
[1756447388517,6.78392885,111490.0,111480.0,1e-08]
[1756447388815,6.80808276,111490.0,111480.0,1e-08]
[1756447390723,7.24968276,111490.0,111480.0,1e-08]
[1756447391367,7.06508613,111490.0,111480.0,1e-08]
[1756447391574,7.21744613,111490.0,111480.0,1e-08]
[1756447393015,7.04830092,111490.0,111480.0,1e-08]
[1756447393216,7.21738471,111490.0,111480.0,1e-08]
[1756447393878,7.21738487,111490.0,111480.0,1e-08]
[1756447394079,7.21738519,111490.0,111480.0,1e-08]
[1756447394705,7.61566072,111490.0,111480.0,1e-08]
[1756447394916,7.62374344,111490.0,111480.0,1e-08]
[1756447395540,7.47142344,111490.0,111480.0,1e-08]
[1756447395753,7.62174344,111490.0,111480.0,1e-08]
[1756447395972,7.61974344,111490.0,111480.0,1e-08]
[1756447396176,7.47542344,111490.0,111480.0,1e-08]
[1756447396401,7.6758652,111490.0,111480.0,1e-08]
[1756447396603,7.6678652,111490.0,111480.0,1e-08]
[1756447396806,7.6738652,111490.0,111480.0,1e-08]
[1756447397014,7.6778652,111490.0,111480.0,1e-08]
[1756447397434,7.6738652,111490.0,111480.0,1e-08]
[1756447398254,7.5215452,111490.0,111480.0,1e-08]
[1756447398468,7.6738252,111490.0,111480.0,1e-08]
[1756447398686,7.6678252,111490.0,111480.0,1e-08]
[1756447398913,7.71282598,111490.0,111480.0,1e-08]
[1756447400183,7.71278598,111490.0,111480.0,1e-08]
[1756447401275,7.21227045,111490.0,111480.0,1e-08]
[1756447401488,7.33219382,111490.0,111480.0,1e-08]
[1756447401693,7.68046935,111490.0,111480.0,1e-08]
[1756447401892,7.33219382,111490.0,111480.0,1e-08]
[1756447402178,7.18003382,111490.0,111480.0,1e-08]
[1756447402355,2.18461999,111490.0,111480.0,0.00526001]
[1756447402586,2.20876428,111490.0,111480.0,0.00526001]
[1756447402772,2.00660428,111490.0,111480.0,0.00526001]
[1756447403031,2.05563935,111490.0,111480.0,0.00526001]
[1756447403234,2.05363935,111490.0,111480.0,0.00526001]
[1756447403433,2.07257817,111490.0,111480.0,0.00526001]
[1756447403572,2.07457692,111490.0,111480.0,0.00626001]
[1756447403774,2.21287324,111490.0,111480.0,0.00626001]
[1756447403974,0.77160257,111490.0,111480.0,0.00626001]
[1756447404191,0.87260311,111490.0,111480.0,0.00626001]
[1756447404431,1.23354193,111490.0,111480.0,0.00626001]
[1756447404783,0.89354193,111490.0,111480.0,0.00626001]
[1756447405064,0.67948233,111490.0,111480.0,0.00626001]
[1756447405276,1.15483188,111490.0,111480.0,0.00626001]
[1756447405483,1.1757707,111490.0,111480.0,0.00626001]
[1756447406326,1.0236507,111490.0,111480.0,0.00626001]
[1756447406539,1.1757707,111490.0,111480.0,0.00626001]
[1756447406924,1.15023167,111490.0,111480.0,0.00626001]
[1756447407700,1.14180645,111490.0,111480.0,0.00626001]
[1756447407899,0.53221578,111490.0,111480.0,0.07689083]
[1756447408101,1.03249131,111490.0,111480.0,0.07689083]
[1756447408532,1.53999665,111490.0,111480.0,0.00626001]
[1756447408775,1.19172112,111490.0,111480.0,0.00626001]
[1756447409110,1.14172645,111490.0,111480.0,0.00526001]
[1756447409310,1.13972645,111490.0,111480.0,0.00526001]
[1756447409697,1.13972645,111490.0,111480.0,0.00626001]
[1756447410608,1.48800198,111490.0,111480.0,0.00414001]
[1756447410712,1.51570853,111490.0,111480.0,0.00414001]
[1756447410927,1.60400485,111490.0,111480.0,0.00414001]
[1756447411124,1.60400485,111490.0,111480.0,0.00626001]
[1756447411409,1.58468372,111490.0,111480.0,0.00626001]
[1756447412132,1.43368372,111490.0,111480.0,0.00526001]
[1756447412325,1.14168645,111490.0,111480.0,0.00526001]
[1756447412546,1.13968645,111490.0,111480.0,0.00526001]
[1756447412898,1.14168645,111490.0,111480.0,0.00526001]
[1756447413104,1.48996198,111490.0,111480.0,0.00526001]
[1756447413303,1.5782583,111490.0,111480.0,0.00526001]
[1756447417771,1.6052313,111490.0,111480.0,0.00526001]
[1756447421839,1.51693498,111490.0,111480.0,0.00526001]
[1756447424702,1.36497498,111490.0,111480.0,0.00314001]
[1756447424951,1.51673498,111490.0,111480.0,1e-08]
[1756447425577,1.52511721,111490.0,111480.0,1e-08]
[1756447425788,1.59179455,111490.0,111480.0,1e-08]
[1756447426010,1.68009087,111490.0,111480.0,1e-08]
[1756447426229,1.77669744,111490.0,111480.0,1e-08]
[1756447427135,6.77326344,111490.0,111480.0,1e-08]
[1756447427763,6.62150344,111490.0,111480.0,1e-08]
[1756447427973,6.77322344,111490.0,111480.0,1e-08]
[1756447428509,6.62150344,111490.0,111480.0,1e-08]
[1756447428725,6.77326344,111490.0,111480.0,1e-08]
[1756447429475,6.75080116,111490.0,111480.0,1e-08]
[1756447430235,6.7508125,111490.0,111480.0,1e-08]
[1756447431590,6.74243522,111490.0,111480.0,1e-08]
[1756447431799,6.75082384,111490.0,111480.0,1e-08]
[1756447432051,7.19242384,111490.0,111480.0,1e-08]
[1756447432805,7.19234384,111490.0,111480.0,1e-08]
[1756447433550,7.04066384,111490.0,111480.0,1e-08]
[1756447433747,7.19234384,111490.0,111480.0,1e-08]
[1756447435173,7.18816237,111490.0,111480.0,1e-08]
[1756447435425,0.52772819,111450.0,111440.0,0.07063082]
[1756447435621,0.52772819,111450.0,111440.0,0.07075934]
[1756447435826,0.52772819,111450.0,111440.0,0.07287934]
[1756447437377,0.52772819,111450.0,111440.0,0.07594934]
[1756447438550,0.52772819,111450.0,111440.0,0.07894934]
[1756447438707,0.52772819,111450.0,111440.0,0.08394934]
[1756447439345,0.52772819,111450.0,111440.0,0.07894934]
[1756447439588,0.52772819,111450.0,111440.0,0.07594934]
[1756447439721,0.52772819,111450.0,111440.0,0.08094934]
[1756447441047,0.52772819,111450.0,111440.0,0.01031852]
[1756447442807,0.17945266,111450.0,111440.0,0.01031852]
[1756447442986,0.52772819,111450.0,111440.0,0.01031852]
[1756447443148,0.17945266,111450.0,111440.0,0.01031852]
[1756447443505,0.52772819,111450.0,111440.0,0.01031852]
[1756447443780,0.17945266,111450.0,111440.0,0.01031852]
[1756447445147,0.26740441,111450.0,111440.0,0.01031852]
[1756447445565,0.17945266,111450.0,111440.0,0.01031852]
[1756447446928,0.52772819,111450.0,111440.0,0.01031852]
[1756447450257,0.90176254,111450.0,111440.0,0.00512852]
[1756447450553,0.99005886,111450.0,111440.0,0.00512852]
[1756447450955,0.99005886,111450.0,111440.0,0.00312852]
[1756447451172,1.07551518,111450.0,111440.0,0.00312852]
[1756447451375,0.72723965,111450.0,111440.0,0.00412852]
[1756447451800,1.41551518,111450.0,111440.0,0.00012852]
[1756447452016,1.44266876,111450.0,111440.0,0.00012852]
[1756447452226,1.44266876,111450.0,111440.0,0.00312852]
[1756447452426,1.44266876,111450.0,111440.0,0.00112852]
[1756447452810,1.44266876,111450.0,111440.0,0.00312852]
[1756447453991,1.46964976,111450.0,111440.0,0.00312852]
[1756447454409,1.61808976,111450.0,111440.0,0.00312852]
[1756447454744,1.62092976,111450.0,111440.0,0.00312852]
[1756447457010,1.61808976,111450.0,111440.0,0.00312852]
[1756447458369,1.62092976,111450.0,111440.0,0.00312852]
[1756447458820,1.67175954,111450.0,111440.0,0.00312852]
[1756447459228,1.66336334,111450.0,111440.0,0.00312852]
[1756447460054,1.66335956,111450.0,111440.0,0.00312852]
[1756447460818,1.73235956,111450.0,111440.0,0.00312852]
[1756447462079,0.8845285,111450.0,111440.0,0.00312852]
[1756447462298,1.73231956,111450.0,111440.0,0.00312852]
[1756447465705,0.8586027,111450.0,111440.0,0.00312852]
[1756447465920,1.70655376,111450.0,111440.0,0.00312852]
[1756447466066,1.72962322,111450.0,111440.0,0.00312852]
[1756447466285,1.71284538,111450.0,111440.0,0.00312852]
[1756447466517,1.71568538,111450.0,111440.0,0.00312852]
[1756447467163,1.70939376,111450.0,111440.0,0.00312852]
[1756447467478,1.73246303,111450.0,111440.0,0.00312852]
[1756447467694,1.72617141,111450.0,111440.0,0.00312852]
[1756447468180,1.71568531,111450.0,111440.0,0.00212852]
[1756447468386,1.5299411,111450.0,111440.0,0.00212852]
[1756447468619,1.5299411,111450.0,111440.0,0.00012852]
[1756447468865,1.5299411,111450.0,111440.0,0.00112852]
[1756447468866,0.77030638,111450.0,111440.0,0.00112852]
[1756447469042,1.59386386,111450.0,111440.0,0.00646852]
[1756447469302,1.04635738,111450.0,111440.0,0.00646852]
[1756447469510,1.15542433,111450.0,111440.0,0.00646852]
[1756447470148,1.50369986,111450.0,111440.0,0.00646852]
[1756447470355,1.51819297,111450.0,111440.0,0.00112852]
[1756447470710,1.51819297,111450.0,111440.0,0.00646852]
[1756447471121,1.53497079,111450.0,111440.0,0.00646852]
[1756447471310,1.53497101,111450.0,111440.0,0.00646852]
[1756447471643,1.5224579,111450.0,111440.0,0.00646852]
[1756447472194,0.67244684,111450.0,111440.0,0.00646852]
[1756447472397,1.5205179,111450.0,111440.0,0.00646852]
[1756447473011,1.5224979,111450.0,111440.0,0.00646852]
[1756447473624,1.5224979,111450.0,111440.0,0.00112852]
[1756447475336,1.51988204,111450.0,111440.0,0.00112852]
[1756447478043,0.88451335,111450.0,111440.0,0.00112852]
[1756447478258,1.58106441,111450.0,111440.0,0.00112852]
[1756447478480,0.88167335,111450.0,111440.0,0.00112852]
[1756447478689,1.61959161,111450.0,111440.0,0.00112852]
[1756447479653,1.59527803,111450.0,111440.0,0.00112852]
[1756447479884,1.68357435,111450.0,111440.0,0.00112852]
[1756447480108,1.59527803,111450.0,111440.0,0.00112852]
[1756447480305,1.59527803,111450.0,111440.0,0.00646852]
[1756447480708,1.59527803,111450.0,111440.0,0.00112852]
[1756447480906,1.58899013,111450.0,111440.0,0.00112852]
[1756447481183,1.59531125,111450.0,111440.0,0.00112852]
[1756447481888,1.59531345,111450.0,111440.0,0.00112852]
[1756447484090,1.44379345,111450.0,111440.0,0.00646852]
[1756447484269,1.59389345,111450.0,111440.0,0.00646852]
[1756447484716,1.44182587,111450.0,111440.0,0.00646852]
[1756447484919,1.59386587,111450.0,111440.0,0.00646852]
[1756447486189,1.44182587,111450.0,111440.0,0.00646852]
[1756447486367,1.24559034,111450.0,111440.0,0.00646852]
[1756447486723,1.59386587,111450.0,111440.0,0.00646852]
[1756447486926,1.24555034,111450.0,111440.0,0.00646852]
[1756447487132,1.03386018,111450.0,111440.0,0.00646852]
[1756447487291,0.98300551,111450.0,111440.0,0.00646852]
[1756447487462,1.00394433,111450.0,111440.0,0.00646852]
[1756447488707,1.15594433,111450.0,111440.0,0.00646852]
[1756447493576,1.00394433,111450.0,111440.0,0.00646852]
[1756447493829,0.89470919,111450.0,111440.0,0.00646852]
[1756447494258,0.54643366,111450.0,111440.0,0.00646852]
[1756447496450,0.89470919,111450.0,111440.0,0.00646852]
[1756447496672,0.55470919,111450.0,111440.0,0.00646852]
[1756447496863,0.026981,111450.0,111440.0,0.18593729]
[1756447497062,0.17945047,111460.0,111440.0,0.18593729]
[1756447497260,0.17945047,111460.0,111450.0,0.00303]
[1756447497261,0.54038929,111460.0,111450.0,0.00303]
[1756447497468,0.91564182,111460.0,111450.0,0.00303]
[1756447497696,0.894703,111460.0,111450.0,0.00515]
[1756447497852,0.026977,111460.0,111450.0,0.18684581]
[1756447498067,0.18841833,111470.0,111450.0,0.18460266]
[1756447498271,0.21539233,111470.0,111460.0,0.18246656]
[1756447498471,0.21539233,111470.0,111460.0,0.00515]
[1756447499325,0.21539233,111470.0,111460.0,0.18458656]
[1756447499601,0.026974,111470.0,111460.0,0.18458656]
[1756447499804,0.67951697,111480.0,111460.0,0.18558656]
[1756447500008,0.81572511,111480.0,111470.0,0.00203]
[1756447500224,0.81572511,111480.0,111470.0,0.00415]
[1756447500887,0.20641444,111480.0,111470.0,0.00415]
[1756447501087,0.55468997,111480.0,111470.0,0.00415]
[1756447501886,0.20741444,111480.0,111470.0,0.00415]
[1756447502120,0.55568997,111480.0,111470.0,0.00415]
[1756447502736,0.027973,111480.0,111470.0,0.18357047]
[1756447503174,0.20737737,111480.0,111470.0,0.18357047]
[1756447503871,0.20737737,111480.0,111470.0,0.00415]
[1756447504098,0.5556529,111480.0,111470.0,0.00615]
[1756447504529,0.5567329,111480.0,111470.0,0.002]
[1756447504736,0.5598529,111480.0,111470.0,0.002]
[1756447504953,1.01736357,111480.0,111470.0,0.004]
[1756447505166,1.46997347,111480.0,111470.0,0.004]
[1756447505615,1.49243575,111480.0,111470.0,0.004]
[1756447505830,1.56143575,111480.0,111470.0,0.004]
[1756447506043,1.56143575,111480.0,111470.0,0.002]
[1756447506477,1.96038839,111480.0,111470.0,0.002]
[1756447506700,0.17945266,111450.0,111440.0,0.00012852]
[1756447506951,0.67960819,111450.0,111440.0,0.00315852]
[1756447507166,0.67960819,111450.0,111440.0,0.00527852]
[1756447507582,0.55470719,111450.0,111440.0,0.00527852]
[1756447507782,0.20643166,111450.0,111440.0,0.00527852]
[1756447508335,0.55470719,111450.0,111440.0,0.00527852]
[1756447508771,0.55470719,111450.0,111440.0,0.00727852]
[1756447509089,0.55470719,111450.0,111440.0,0.00827852]
[1756447511466,1.44571418,111450.0,111440.0,0.00312852]
[1756447511807,1.56149004,111450.0,111440.0,0.00312852]
[1756447512031,0.52779262,111410.0,111400.0,0.0002]
[1756447512205,0.52779262,111410.0,111400.0,0.00337336]
[1756447512407,0.52779262,111410.0,111400.0,0.00549336]
[1756447512629,0.5498033,111410.0,111400.0,0.00034336]
[1756447512823,0.5767893,111410.0,111400.0,0.00034336]
[1756447513021,0.6606884,111410.0,111400.0,0.00034336]
[1756447513168,1.0006884,111410.0,111400.0,0.00034336]
[1756447513409,1.0006884,111410.0,111400.0,0.00134336]
[1756447513853,0.9199093,111410.0,111400.0,0.00134336]
[1756447514102,1.02914444,111410.0,111400.0,0.00134336]
[1756447514505,1.37741997,111410.0,111400.0,0.00134336]
[1756447514720,1.02914444,111410.0,111400.0,0.00134336]
[1756447514922,1.02914444,111410.0,111400.0,0.00034336]
[1756447515135,1.13415996,111410.0,111400.0,0.00034336]
[1756447515339,1.48242372,111410.0,111400.0,0.00034336]
[1756447515547,1.15946177,111410.0,111400.0,0.00034336]
[1756447515962,1.15846177,111410.0,111400.0,0.00034336]
[1756447516115,1.15946177,111410.0,111400.0,0.00034336]
[1756447516318,1.20209682,111410.0,111400.0,0.00034336]
[1756447516521,1.19809682,111410.0,111400.0,0.00034336]
[1756447516730,0.86080088,111410.0,111400.0,0.00034336]
[1756447516906,1.3905935,111410.0,111400.0,0.00034336]
[1756447517100,1.3941925,111410.0,111400.0,0.00034336]
[1756447517908,1.5469925,111410.0,111400.0,0.00034336]
[1756447518919,1.3951925,111410.0,111400.0,0.00034336]
[1756447519122,1.19887697,111410.0,111400.0,0.00034336]
[1756447519326,1.21871825,111410.0,111400.0,0.00034336]
[1756447520165,1.19436467,111410.0,111400.0,0.00034336]
[1756447520381,1.19436467,111410.0,111400.0,0.00358336]
[1756447520581,1.19436467,111410.0,111400.0,0.00034336]
[1756447521153,1.19336467,111410.0,111400.0,0.00013152]
[1756447521360,1.19336467,111410.0,111400.0,0.00113152]
[1756447522004,1.19136467,111410.0,111400.0,0.00113152]
[1756447523005,1.03944467,111410.0,111400.0,0.00437152]
[1756447523225,1.15204962,111410.0,111400.0,0.00647152]
[1756447525239,1.15204962,111410.0,111400.0,0.00147152]
[1756447525462,1.15402962,111410.0,111400.0,0.00147152]
[1756447526071,1.15204962,111410.0,111400.0,0.00147152]
[1756447527062,1.15204962,111410.0,111400.0,0.00471152]
[1756447528872,0.9115133,111410.0,111400.0,0.00471152]
[1756447529076,1.04700587,111410.0,111400.0,0.00471152]
[1756447529287,0.17953321,111400.0,111380.0,0.25937446]
[1756447529494,0.17954933,111390.0,111380.0,0.07087861]
[1756447529694,0.17954933,111390.0,111380.0,0.07297861]
[1756447529899,0.17954933,111390.0,111380.0,0.25254406]
[1756447530356,0.17954933,111390.0,111380.0,0.18191324]
[1756447531196,0.17954933,111390.0,111380.0,0.18515324]
[1756447531397,0.52780874,111400.0,111390.0,0.17954933]
[1756447531533,0.17953321,111400.0,111390.0,0.18164933]
[1756447531734,0.17953321,111400.0,111390.0,0.00534]
[1756447531960,0.17953321,111400.0,111390.0,0.00758436]
[1756447533407,0.52780874,111400.0,111390.0,0.00758436]
[1756447533989,0.52780874,111400.0,111390.0,0.00534]
[1756447534195,0.52780874,111400.0,111390.0,0.00958436]
[1756447534393,0.52780874,111400.0,111390.0,0.00734]
[1756447534928,0.52780874,111400.0,111390.0,0.00834]
[1756447535128,0.52780874,111400.0,111390.0,0.01058436]
[1756447535351,0.5445089,111400.0,111390.0,0.01058436]
[1756447536107,0.60870782,111400.0,111390.0,0.003]
[1756447536391,0.5496989,111400.0,111390.0,0.003]
[1756447537346,0.56895576,111400.0,111390.0,0.003]
[1756447537783,0.5496989,111400.0,111390.0,0.003]
[1756447538431,0.56896722,111400.0,111390.0,0.003]
[1756447540237,0.57524964,111400.0,111390.0,0.003]
[1756447541090,0.72716964,111400.0,111390.0,0.003]
[1756447541506,0.75965111,111400.0,111390.0,0.003]
[1756447542521,0.82772867,111400.0,111390.0,0.003]
[1756447543033,0.81305744,111400.0,111390.0,0.003]
[1756447543383,0.82782383,111400.0,111390.0,0.003]
[1756447543595,0.82782453,111400.0,111390.0,0.003]
[1756447544463,0.86001064,111400.0,111390.0,0.003]
[1756447545409,0.79193308,111400.0,111390.0,0.003]
[1756447546191,1.61347285,111400.0,111390.0,0.003]
[1756447546603,1.58128674,111400.0,111390.0,0.003]
[1756447547019,1.58128674,111400.0,111390.0,0.001]
[1756447547238,1.58128674,111400.0,111390.0,0.002]
[1756447547443,1.32130753,111400.0,111390.0,0.002]
[1756447547815,1.32130753,111400.0,111390.0,0.001]
[1756447547994,1.34562111,111400.0,111390.0,0.001]
[1756447548194,1.69389664,111400.0,111390.0,0.001]
[1756447549310,1.69749664,111400.0,111390.0,0.001]
[1756447549920,0.54048815,111390.0,111380.0,0.00024779]
[1756447550151,1.60440193,111390.0,111380.0,0.00024779]
[1756447550361,1.60645193,111390.0,111380.0,0.00024779]
[1756447550573,1.60953193,111390.0,111380.0,0.00024779]
[1756447551407,1.60949193,111390.0,111380.0,0.00124779]
[1756447551615,1.5651098,111390.0,111380.0,0.00124779]
[1756447553273,1.54832764,111390.0,111380.0,0.00124779]
[1756447553481,1.54832759,111390.0,111380.0,0.00124779]
[1756447555118,1.39664759,111390.0,111380.0,0.00124779]
[1756447555480,1.19484206,111390.0,111380.0,0.00325779]
[1756447555667,1.19689206,111390.0,111380.0,0.00325779]
[1756447555876,1.10658574,111390.0,111380.0,0.00646779]
[1756447556107,0.60990015,111390.0,111380.0,0.00646779]
[1756447556309,0.22928048,111390.0,111380.0,0.00646779]
[1756447556657,0.20511172,111390.0,111380.0,0.00646779]
[1756447557013,0.19881765,111390.0,111380.0,0.00646779]
[1756447557213,0.20511208,111390.0,111380.0,0.00871235]
[1756447557423,0.20511208,111390.0,111380.0,0.00771235]
[1756447557604,0.55338761,111390.0,111380.0,0.00846779]
[1756447557755,0.55338761,111390.0,111380.0,0.00946779]
[1756447558159,0.55338761,111390.0,111380.0,0.00846779]
[1756447558570,0.55543761,111390.0,111380.0,0.00725779]
[1756447558772,0.64681393,111390.0,111380.0,0.00524779]
[1756447559180,0.55851761,111390.0,111380.0,0.00524779]
[1756447559849,0.33288263,111390.0,111380.0,0.00524779]
[1756447559988,0.51243196,111390.0,111380.0,0.00224779]
[1756447560459,0.51243196,111390.0,111380.0,0.00424779]
[1756447560660,0.86070749,111390.0,111380.0,0.00424779]
[1756447561014,1.01230749,111390.0,111380.0,0.00224779]
[1756447561434,1.01230749,111390.0,111380.0,0.00324779]
[1756447562525,1.35230749,111390.0,111380.0,0.00324779]
[1756447562932,0.17958157,111370.0,111360.0,0.21928779]
[1756447563097,0.5278571,111370.0,111360.0,0.22498552]
[1756447564710,0.17958157,111370.0,111360.0,0.40758322]
[1756447565047,0.17958157,111370.0,111360.0,0.22798552]
[1756447565246,0.17958157,111370.0,111360.0,0.07834552]
[1756447565483,0.17958157,111370.0,111360.0,0.22990552]
[1756447565904,0.17958157,111370.0,111360.0,0.07834552]
[1756447566119,0.18163157,111370.0,111360.0,0.22669552]
[1756447566590,0.17958157,111370.0,111360.0,0.22990552]
[1756447568620,0.5299071,111370.0,111360.0,0.22661552]
[1756447569212,0.5299071,111370.0,111360.0,0.22982552]
[1756447569351,0.5278571,111370.0,111360.0,0.22982552]
[1756447569754,0.5278571,111370.0,111360.0,0.07834552]
[1756447569960,0.5329871,111370.0,111360.0,0.07312552]
[1756447570164,0.5329871,111370.0,111360.0,0.22456552]
[1756447570575,0.5329871,111370.0,111360.0,0.22657552]
[1756447571957,0.5329871,111370.0,111360.0,0.00547773]
[1756447571958,0.8729871,111370.0,111360.0,0.00547773]
[1756447577577,0.8729871,111370.0,111360.0,0.00347773]
[1756447577805,0.8729871,111370.0,111360.0,0.00447773]
[1756447578039,0.8729871,111370.0,111360.0,0.00147773]
[1756447578257,0.52471157,111370.0,111360.0,0.00453773]
[1756447578473,0.8729871,111370.0,111360.0,0.00247773]
[1756447578684,0.8729871,111370.0,111360.0,0.00147773]
[1756447578925,0.8729871,111370.0,111360.0,0.00247773]
[1756447579361,0.91477455,111370.0,111360.0,0.00147773]
[1756447579791,0.91477455,111370.0,111360.0,0.00247773]
[1756447581953,0.8729871,111370.0,111360.0,0.00247773]
[1756447584775,1.0244271,111370.0,111360.0,0.00247773]
[1756447585636,1.137037,111370.0,111360.0,0.00247773]
[1756447585844,1.11300342,111370.0,111360.0,0.00247773]
[1756447586249,1.11300342,111370.0,111360.0,0.00147773]
[1756447586476,1.20129974,111370.0,111360.0,0.00147773]
[1756447586882,1.20129974,111370.0,111360.0,0.00047773]
[1756447588140,1.04957974,111370.0,111360.0,0.00047773]
[1756447588362,1.20125974,111370.0,111360.0,0.00047773]
[1756447588574,1.04957974,111370.0,111360.0,0.00047773]
[1756447588795,1.10996342,111370.0,111360.0,0.00047773]
[1756447589035,0.95820342,111370.0,111360.0,0.00253773]
[1756447589303,0.51958157,111370.0,111360.0,0.00567773]
[1756447590642,0.17958157,111370.0,111360.0,0.3413204]
[1756447590860,0.17958157,111370.0,111360.0,0.34107543]
[1756447591792,0.17956545,111380.0,111360.0,0.34107543]
[1756447592003,0.53148679,111390.0,111370.0,0.18496633]
[1756447592004,0.18852679,111390.0,111370.0,0.18496633]
[1756447592210,0.18852679,111390.0,111380.0,0.33664545]
[1756447592419,0.52852679,111390.0,111380.0,0.15712]
[1756447592621,0.53680232,111390.0,111380.0,0.15712]
[1756447593048,0.87680232,111390.0,111380.0,0.15712]
[1756447593252,0.52852679,111390.0,111380.0,0.15936456]
[1756447594484,0.52852679,111390.0,111380.0,0.15712]
[1756447594690,0.52852679,111390.0,111380.0,0.0052]
[1756447594895,0.52852679,111390.0,111380.0,0.15708]
[1756447596392,0.53067679,111390.0,111380.0,0.15394]
[1756447596596,0.87895232,111390.0,111380.0,0.00206]
[1756447596803,0.17956545,111380.0,111370.0,0.22406]
[1756447597015,0.17956545,111380.0,111370.0,0.22612]
[1756447597237,0.17956545,111380.0,111370.0,0.40570157]
[1756447598036,0.17956545,111380.0,111370.0,0.40770157]
[1756447598798,0.17956545,111380.0,111370.0,0.43465257]
[1756447599423,0.52852679,111390.0,111370.0,0.43465257]
[1756447599670,0.17956545,111380.0,111370.0,0.28285257]
[1756447599883,0.17956545,111380.0,111370.0,0.43657257]
[1756447600055,0.18171545,111380.0,111370.0,0.43343257]
[1756447600292,0.18171545,111380.0,111370.0,0.249851]
[1756447600785,0.18171545,111380.0,111370.0,0.43143257]
[1756447600991,0.18171545,111380.0,111370.0,0.43043257]
[1756447601199,0.18171545,111380.0,111370.0,0.43243257]
[1756447601359,0.17956545,111380.0,111370.0,0.43557257]
[1756447601793,0.17956545,111380.0,111370.0,0.43457257]
[1756447602003,0.17956545,111380.0,111370.0,0.43453257]
[1756447602387,0.34,111390.0,111380.0,0.17956545]
[1756447602593,0.52850987,111400.0,111390.0,0.17954933]
[1756447602832,0.52850987,111400.0,111390.0,0.33642933]
[1756447603314,0.34,111400.0,111390.0,0.33642933]
[1756447603515,0.20833422,111410.0,111390.0,0.33642933]
[1756447603725,0.54833422,111410.0,111400.0,0.00314]
[1756447604139,0.54833422,111410.0,111400.0,0.0052]
[1756447604871,0.54833422,111410.0,111400.0,0.00435195]
[1756447605070,0.54833422,111410.0,111400.0,0.00849195]
[1756447605328,0.55048422,111410.0,111400.0,0.00104779]
[1756447605569,0.90171975,111410.0,111400.0,0.15272779]
[1756447607152,0.55344422,111410.0,111400.0,0.15272779]
[1756447607354,0.90171975,111410.0,111400.0,0.15272779]
[1756447608041,1.58719756,111410.0,111400.0,0.00104779]
[1756447608248,1.65374401,111410.0,111400.0,0.00104779]
[1756447608463,1.68073601,111410.0,111400.0,0.00104779]
[1756447609527,1.68173601,111410.0,111400.0,4.779e-05]
[1756447609744,1.68473601,111410.0,111400.0,4.779e-05]
[1756447609940,1.68073601,111410.0,111400.0,4.779e-05]
[1756447610119,1.23851608,111410.0,111400.0,4.779e-05]
[1756447610468,1.24151608,111410.0,111400.0,4.779e-05]
[1756447610675,1.2190538,111410.0,111400.0,4.779e-05]
[1756447611246,1.56732933,111410.0,111400.0,4.779e-05]
[1756447611445,1.59164291,111410.0,111400.0,4.779e-05]
[1756447611883,1.61410519,111410.0,111400.0,4.779e-05]
[1756447612905,1.2190538,111410.0,111400.0,4.779e-05]
[1756447613046,1.13075748,111410.0,111400.0,4.779e-05]
[1756447613285,1.26254689,111410.0,111400.0,4.779e-05]
[1756447614930,1.25751689,111410.0,111400.0,0.00218779]
[1756447615133,1.26249689,111410.0,111400.0,4.779e-05]
[1756447616134,1.25849689,111410.0,111400.0,4.779e-05]
[1756447616548,1.18945689,111410.0,111400.0,4.779e-05]
[1756447617172,1.19045689,111410.0,111400.0,4.779e-05]
[1756447617378,1.16346489,111410.0,111400.0,4.779e-05]
[1756447617801,1.01182489,111410.0,111400.0,4.779e-05]
[1756447618003,1.13746607,111410.0,111400.0,0.00218779]
[1756447618251,1.14244607,111410.0,111400.0,4.779e-05]
[1756447618813,0.98795607,111410.0,111400.0,0.00218779]
[1756447619043,1.13947607,111410.0,111400.0,0.00218779]
[1756447619745,1.14240607,111410.0,111400.0,0.00218779]
[1756447620155,0.79413054,111410.0,111400.0,0.00218779]
[1756447620312,0.54933422,111410.0,111400.0,0.00511779]
[1756447620508,0.89760975,111410.0,111400.0,0.00511779]
[1756447620703,0.001,111410.0,111400.0,0.184651]
[1756447620925,0.18051709,111410.0,111400.0,0.23032554]
[1756447621139,0.55765903,111410.0,111400.0,0.23032554]
[1756447621343,0.55765903,111410.0,111400.0,0.211636]
[1756447621344,0.52051709,111410.0,111400.0,0.211636]
[1756447622396,0.51951709,111410.0,111400.0,0.211636]
[1756447622945,0.51951709,111410.0,111400.0,0.363116]
[1756447623163,0.51951709,111410.0,111400.0,0.18358279]
[1756447623935,0.86779262,111410.0,111400.0,0.18358279]
[1756447624134,0.86779262,111410.0,111400.0,0.18354279]
[1756447626141,0.51951709,111410.0,111400.0,0.18354279]
[1756447626349,0.86779262,111410.0,111400.0,0.363076]
[1756447626739,0.52779262,111410.0,111400.0,0.18346279]
[1756447627158,0.52984262,111410.0,111400.0,0.02917279]
[1756447627361,0.53277262,111410.0,111400.0,4.779e-05]
[1756447627812,0.68413262,111410.0,111400.0,4.779e-05]
[1756447628879,0.53277262,111410.0,111400.0,4.779e-05]
[1756447629059,0.68120262,111410.0,111400.0,0.00218779]
[1756447629720,0.68413262,111410.0,111400.0,4.779e-05]
[1756447630848,0.68120262,111410.0,111400.0,0.00218779]
[1756447632612,0.53277262,111410.0,111400.0,0.00218779]
[1756447633149,0.53277262,111410.0,111400.0,4.779e-05]
[1756447633933,0.18156709,111410.0,111400.0,0.00218779]
[1756447634144,0.17951709,111410.0,111400.0,0.18689516]
[1756447634351,0.17951709,111410.0,111400.0,0.00511779]
[1756447634559,0.22575311,111420.0,111400.0,0.18689516]
[1756447634780,0.18847602,111420.0,111400.0,0.181721]
[1756447634958,0.52847602,111420.0,111410.0,0.00293]
[1756447635471,0.52847602,111420.0,111410.0,0.00507]
[1756447635677,0.87675155,111420.0,111410.0,0.00507]
[1756447635845,0.87675155,111420.0,111410.0,0.00731396]
[1756447636460,0.91285867,111420.0,111410.0,0.00731396]
[1756447636622,0.87675155,111420.0,111410.0,0.00731396]
[1756447637646,0.34,111420.0,111410.0,0.18683105]
[1756447637848,0.33086555,111440.0,111420.0,0.17950098]